[Event "*** Titled Tuesday Blitz"]
[Site "Chess.com"]
[Date "2021.04.06"]
[Round "3"]
[White "Natalya_Buksa"]
[Black "moro182"]
[Result "0-1"]
[WhiteElo "2515"]
[BlackElo "2736"]
[TimeControl "180+1"]
[EndTime "10:30:38 PDT"]
[Termination "moro182 won by resignation"]

1. d4 {[%clk 0:03:00.9]} 1... g6 {[%clk 0:02:59.5]} 2. Nc3 {[%clk 0:03:01.5]}
2... Bg7 {[%clk 0:02:59.2]} 3. e4 {[%clk 0:03:02.1]} 3... d6 {[%clk 0:02:59.7]}
4. Bg5 {[%clk 0:02:49.7]} 4... h6 {[%clk 0:02:56.6]} 5. Bh4 {[%clk 0:02:49.5]}
5... Nf6 {[%clk 0:02:52.1]} 6. e5 {[%clk 0:02:49.4]} 6... Nh7 {[%clk 0:02:35.5]}
7. f4 {[%clk 0:02:47.1]} 7... g5 {[%clk 0:02:31.1]} 8. Bg3 {[%clk 0:02:44.4]}
8... gxf4 {[%clk 0:02:30.2]} 9. Bxf4 {[%clk 0:02:45.3]} 9... Nc6 {[%clk
0:02:30]} 10. Bb5 {[%clk 0:01:55.6]} 10... a6 {[%clk 0:02:15.2]} 11. Bxc6+
{[%clk 0:01:55.8]} 11... bxc6 {[%clk 0:02:16.1]} 12. Nf3 {[%clk 0:01:56]} 12...
Bg4 {[%clk 0:02:12.9]} 13. Qe2 {[%clk 0:01:52.7]} 13... Qd7 {[%clk 0:02:10.4]}
14. O-O-O {[%clk 0:01:50.3]} 14... Nf8 {[%clk 0:02:06.9]} 15. h3 {[%clk
0:01:50.2]} 15... Be6 {[%clk 0:02:03.3]} 16. g4 {[%clk 0:01:45.3]} 16... Ng6
{[%clk 0:02:02.6]} 17. Bg3 {[%clk 0:01:45.1]} 17... a5 {[%clk 0:01:59.8]} 18.
Rhe1 {[%clk 0:01:36.4]} 18... Rb8 {[%clk 0:01:57.4]} 19. Qa6 {[%clk 0:01:28.4]}
19... O-O {[%clk 0:01:53.3]} 20. Kb1 {[%clk 0:01:02.6]} 20... Rb6 {[%clk
0:01:46.3]} 21. Qxa5 {[%clk 0:01:01.6]} 21... Rfb8 {[%clk 0:01:44.7]} 22. b3
{[%clk 0:01:02]} 22... Qc8 {[%clk 0:01:17.2]} 23. exd6 {[%clk 0:01:00.9]} 23...
cxd6 {[%clk 0:01:13.5]} 24. Qh5 {[%clk 0:01:01.3]} 24... c5 {[%clk 0:01:06.7]}
25. Nd5 {[%clk 0:00:48.1]} 25... Bxd5 {[%clk 0:00:58.6]} 26. Qxd5 {[%clk
0:00:49]} 26... c4 {[%clk 0:00:44]} 27. Re3 {[%clk 0:00:39.5]} 27... cxb3 {[%clk
0:00:40.8]} 28. cxb3 {[%clk 0:00:39.4]} 28... Rb5 {[%clk 0:00:38.2]} 29. Qe4
{[%clk 0:00:39.3]} 29... Qa6 {[%clk 0:00:35.8]} 30. Rc1 {[%clk 0:00:38.7]} 30...
Ra8 {[%clk 0:00:32.6]} 31. Re2 {[%clk 0:00:38]} 31... Rxb3+ {[%clk 0:00:28.5]}
32. axb3 {[%clk 0:00:32.8]} 32... Qa1+ {[%clk 0:00:28]} 33. Kc2 {[%clk
0:00:33.1]} 33... Rc8+ {[%clk 0:00:26]} 34. Kd3 {[%clk 0:00:29.9]} 34... Qxc1
{[%clk 0:00:26.1]} 35. Rd2 {[%clk 0:00:26.7]} 35... Qb1+ {[%clk 0:00:20.7]} 36.
Ke3 {[%clk 0:00:24.8]} 36... Qxb3+ {[%clk 0:00:20.1]} 37. Kf2 {[%clk 0:00:24.4]}
37... Qc3 {[%clk 0:00:19.1]} 38. h4 {[%clk 0:00:23.6]} 38... e6 {[%clk
0:00:18.6]} 39. h5 {[%clk 0:00:23.4]} 39... Ne7 {[%clk 0:00:18.8]} 40. Bxd6
{[%clk 0:00:22.4]} 40... Nd5 {[%clk 0:00:18.7]} 41. Be5 {[%clk 0:00:22.7]} 41...
Bxe5 {[%clk 0:00:17.6]} 42. Qxe5 {[%clk 0:00:23]} 42... Qc1 {[%clk 0:00:17.5]}
43. g5 {[%clk 0:00:21.5]} 43... Rc2 {[%clk 0:00:17.4]} 44. Qe2 {[%clk
0:00:18.7]} 44... Rxd2 {[%clk 0:00:16.5]} 45. Qxd2 {[%clk 0:00:17.4]} 45...
Qxd2+ {[%clk 0:00:16.2]} 46. Nxd2 {[%clk 0:00:18.3]} 46... hxg5 {[%clk
0:00:16.6]} 47. Ne4 {[%clk 0:00:18.6]} 47... f6 {[%clk 0:00:16.3]} 48. Kf3
{[%clk 0:00:18.6]} 48... Kg7 {[%clk 0:00:16]} 49. Nc5 {[%clk 0:00:19]} 49... Nc7
{[%clk 0:00:15.3]} 50. Ke4 {[%clk 0:00:18.4]} 50... Kh6 {[%clk 0:00:15.1]} 51.
Nd7 {[%clk 0:00:18.4]} 51... f5+ {[%clk 0:00:15.2]} 52. Ke5 {[%clk 0:00:18.6]}
52... g4 {[%clk 0:00:15.5]} 53. Kf4 {[%clk 0:00:17.7]} 53... Kxh5 {[%clk
0:00:14.3]} 54. Nf8 {[%clk 0:00:18.2]} 54... Kh6 {[%clk 0:00:14]} 55. Nd7 {[%clk
0:00:16.9]} 55... Kg7 {[%clk 0:00:13.2]} 56. Kg5 {[%clk 0:00:14.6]} 56... Kf7
{[%clk 0:00:12.6]} 57. Ne5+ {[%clk 0:00:14.3]} 57... Ke7 {[%clk 0:00:12.9]} 58.
Kf4 {[%clk 0:00:14.3]} 58... Nd5+ {[%clk 0:00:12.9]} 59. Kg5 {[%clk 0:00:13.7]}
59... Kd6 {[%clk 0:00:12.1]} 60. Nf7+ {[%clk 0:00:12.9]} 60... Kc6 {[%clk
0:00:12.5]} 61. Nd8+ {[%clk 0:00:12.5]} 61... Kd7 {[%clk 0:00:12.1]} 62. Nf7
{[%clk 0:00:12.9]} 62... Nc3 {[%clk 0:00:10.1]} 63. Ne5+ {[%clk 0:00:13.2]}
63... Kd6 {[%clk 0:00:10.6]} 64. Kf4 {[%clk 0:00:13.1]} 64... Kd5 {[%clk
0:00:09.9]} 65. Ng6 {[%clk 0:00:07.4]} 65... Kxd4 {[%clk 0:00:09.2]} 66. Nf8
{[%clk 0:00:06.9]} 66... Nd5+ {[%clk 0:00:09.5]} 67. Kg3 {[%clk 0:00:06.5]}
67... Ke5 {[%clk 0:00:09.9]} 68. Nd7+ {[%clk 0:00:06]} 68... Kd6 {[%clk
0:00:10.2]} 69. Nf8 {[%clk 0:00:06.4]} 69... e5 {[%clk 0:00:10.6]} 70. Ng6
{[%clk 0:00:06.7]} 70... Ke6 {[%clk 0:00:10.9]} 71. Nf8+ {[%clk 0:00:07]} 71...
Ke7 {[%clk 0:00:10.7]} 72. Ng6+ {[%clk 0:00:07.2]} 72... Kf6 {[%clk 0:00:10.8]}
73. Nf8 {[%clk 0:00:07]} 73... Nc3 {[%clk 0:00:11.2]} 74. Kh4 {[%clk 0:00:06.8]}
74... Ne2 {[%clk 0:00:10.2]} 75. Nd7+ {[%clk 0:00:06.2]} 75... Ke6 {[%clk
0:00:10.5]} 76. Nc5+ {[%clk 0:00:06.7]} 76... Kd5 {[%clk 0:00:10.9]} 77. Nd7
{[%clk 0:00:07.2]} 77... Nd4 {[%clk 0:00:11]} 78. Nf6+ {[%clk 0:00:07.2]} 78...
Ke6 {[%clk 0:00:10.9]} 79. Ne8 {[%clk 0:00:07.4]} 79... e4 {[%clk 0:00:09.8]}
80. Kg3 {[%clk 0:00:07.5]} 80... Ke5 {[%clk 0:00:10.2]} 81. Ng7 {[%clk
0:00:06.4]} 81... Ne6 {[%clk 0:00:09.3]} 82. Nh5 {[%clk 0:00:06.2]} 82... e3
{[%clk 0:00:07.4]} 83. Kg2 {[%clk 0:00:06.4]} 83... Nf4+ {[%clk 0:00:06.8]} 84.
Nxf4 {[%clk 0:00:06.1]} 84... Kxf4 {[%clk 0:00:07.7]} 0-1

[Event "*** Titled Tuesday Blitz"]
[Site "Chess.com"]
[Date "2021.04.06"]
[Round "3"]
[White "DenLaz"]
[Black "NoboaKevin1999"]
[Result "1/2-1/2"]
[WhiteElo "2824"]
[BlackElo "2480"]
[TimeControl "180+1"]
[EndTime "10:30:40 PDT"]
[Termination "Game drawn by agreement"]

1. d4 {[%clk 0:03:00.9]} 1... Nf6 {[%clk 0:02:59.9]} 2. c4 {[%clk 0:03:01.1]}
2... e6 {[%clk 0:02:59.2]} 3. Nf3 {[%clk 0:03:01.5]} 3... Bb4+ {[%clk
0:02:58.6]} 4. Bd2 {[%clk 0:03:01.6]} 4... Qe7 {[%clk 0:02:58.5]} 5. g3 {[%clk
0:03:02.1]} 5... Nc6 {[%clk 0:02:58.1]} 6. Nc3 {[%clk 0:02:37.8]} 6... Bxc3
{[%clk 0:02:57.3]} 7. Bxc3 {[%clk 0:02:37.8]} 7... Ne4 {[%clk 0:02:58.2]} 8. Qc2
{[%clk 0:02:36.8]} 8... Nxc3 {[%clk 0:02:57.9]} 9. Qxc3 {[%clk 0:02:37.7]} 9...
d6 {[%clk 0:02:58.4]} 10. d5 {[%clk 0:02:35.5]} 10... exd5 {[%clk 0:02:50.9]}
11. cxd5 {[%clk 0:02:36.4]} 11... Ne5 {[%clk 0:02:50]} 12. Nxe5 {[%clk
0:02:36.1]} 12... dxe5 {[%clk 0:02:49.7]} 13. Rc1 {[%clk 0:02:35.7]} 13... O-O
{[%clk 0:02:33.7]} 14. Bg2 {[%clk 0:02:34.6]} 14... Bg4 {[%clk 0:02:29.1]} 15.
h3 {[%clk 0:02:28.8]} 15... Bh5 {[%clk 0:02:07.7]} 16. Qxc7 {[%clk 0:02:19.9]}
16... Qb4+ {[%clk 0:01:50.1]} 17. Qc3 {[%clk 0:02:18.2]} 17... Qb5 {[%clk
0:01:45.1]} 18. g4 {[%clk 0:02:12.9]} 18... Bg6 {[%clk 0:01:42.4]} 19. O-O
{[%clk 0:02:10.3]} 19... Qxe2 {[%clk 0:01:40.9]} 20. Rfe1 {[%clk 0:02:10.6]}
20... Qa6 {[%clk 0:01:39.8]} 21. Qxe5 {[%clk 0:02:08.5]} 21... Qxa2 {[%clk
0:01:37.9]} 22. d6 {[%clk 0:02:09.1]} 22... Qb3 {[%clk 0:01:32.1]} 23. Rc7
{[%clk 0:01:59.5]} 23... Qa4 {[%clk 0:01:06.8]} 24. Rxb7 {[%clk 0:01:53.9]}
24... Rae8 {[%clk 0:01:05]} 25. Re7 {[%clk 0:01:49.6]} 25... Rd8 {[%clk
0:00:59.6]} 26. Qc5 {[%clk 0:01:14.2]} 26... Qa6 {[%clk 0:00:45.6]} 27. Rxa7
{[%clk 0:01:09.3]} 27... Qxd6 {[%clk 0:00:44.9]} 28. Qxd6 {[%clk 0:01:08.1]}
28... Rxd6 {[%clk 0:00:45.8]} 29. b4 {[%clk 0:01:03.8]} 29... Rd2 {[%clk
0:00:42.8]} 30. b5 {[%clk 0:00:59.3]} 30... Rb2 {[%clk 0:00:41.7]} 31. Bc6
{[%clk 0:00:58]} 31... Bd3 {[%clk 0:00:40.7]} 32. Rb7 {[%clk 0:00:57.7]} 32...
g6 {[%clk 0:00:34.1]} 33. b6 {[%clk 0:00:54.5]} 33... Ba6 {[%clk 0:00:29.7]} 34.
Rc7 {[%clk 0:00:42.6]} 34... Rxb6 {[%clk 0:00:21.7]} 35. Ree7 {[%clk 0:00:42.4]}
35... Bc4 {[%clk 0:00:18.9]} 36. Bd7 {[%clk 0:00:38.8]} 36... Bd5 {[%clk
0:00:17.5]} 37. Re1 {[%clk 0:00:33.4]} 37... h6 {[%clk 0:00:16.1]} 38. Rd1
{[%clk 0:00:33]} 38... Bf3 {[%clk 0:00:15.4]} 39. Rd4 {[%clk 0:00:33]} 39... g5
{[%clk 0:00:14.9]} 40. Kh2 {[%clk 0:00:33]} 40... Rb1 {[%clk 0:00:13.4]} 41. Kg3
{[%clk 0:00:30.8]} 41... Ba8 {[%clk 0:00:12.9]} 42. f3 {[%clk 0:00:29]} 42...
Rb3 {[%clk 0:00:11.8]} 43. Bc6 {[%clk 0:00:26.3]} 43... Bxc6 {[%clk 0:00:12]}
44. Rxc6 {[%clk 0:00:26.4]} 44... Kg7 {[%clk 0:00:12.9]} 45. Rc7 {[%clk
0:00:25.5]} 45... Rb6 {[%clk 0:00:12.2]} 46. Rd3 {[%clk 0:00:24.3]} 46... Rf6
{[%clk 0:00:12.4]} 47. h4 {[%clk 0:00:24.9]} 47... gxh4+ {[%clk 0:00:10.7]} 48.
Kxh4 {[%clk 0:00:25]} 48... Rb8 {[%clk 0:00:11.6]} 49. Kg3 {[%clk 0:00:24.8]}
49... Rb1 {[%clk 0:00:11.5]} 50. Rc2 {[%clk 0:00:23]} 50... Rb4 {[%clk
0:00:11.5]} 51. Re2 {[%clk 0:00:21.3]} 51... Rbf4 {[%clk 0:00:11.6]} 52. Re5
{[%clk 0:00:21.4]} 52... Kg6 {[%clk 0:00:11.8]} 53. Rh5 {[%clk 0:00:21.4]} 53...
Ra4 {[%clk 0:00:11.3]} 54. Rh3 {[%clk 0:00:18.1]} 54... Raf4 {[%clk 0:00:11.1]}
55. Kg2 {[%clk 0:00:17.4]} 55... Ra4 {[%clk 0:00:10.9]} 56. Rd5 {[%clk
0:00:17.4]} 56... Kg7 {[%clk 0:00:10.5]} 57. Rd3 {[%clk 0:00:16.4]} 57... Ra2+
{[%clk 0:00:10.4]} 58. Kg3 {[%clk 0:00:16.6]} 58... Ra1 {[%clk 0:00:11.3]} 59.
Rh2 {[%clk 0:00:16.5]} 59... Ra4 {[%clk 0:00:11.2]} 60. Rc2 {[%clk 0:00:15.7]}
60... Raa6 {[%clk 0:00:11.6]} 61. Rc5 {[%clk 0:00:16]} 61... Rae6 {[%clk
0:00:11.3]} 62. Rh5 {[%clk 0:00:15.5]} 62... Ra6 {[%clk 0:00:11]} 63. Rd2 {[%clk
0:00:14.1]} 63... Ra3 {[%clk 0:00:11]} 64. Rf2 {[%clk 0:00:14.7]} 64... Rg6
{[%clk 0:00:11.1]} 65. Rf5 {[%clk 0:00:14.3]} 65... Rf6 {[%clk 0:00:11.4]} 66.
Re5 {[%clk 0:00:12.9]} 66... Rg6 {[%clk 0:00:11]} 67. Rfe2 {[%clk 0:00:08.2]}
67... Rf6 {[%clk 0:00:11]} 68. R2e3 {[%clk 0:00:08.6]} 68... Rxe3 {[%clk
0:00:11.1]} 69. Rxe3 {[%clk 0:00:09.5]} 69... Kg6 {[%clk 0:00:12]} 70. f4 {[%clk
0:00:09.8]} 70... Ra6 {[%clk 0:00:12.2]} 71. Kh4 {[%clk 0:00:09.6]} 71... f5
{[%clk 0:00:10.7]} 72. Rb3 {[%clk 0:00:07.3]} 72... fxg4 {[%clk 0:00:10.4]} 73.
Kxg4 {[%clk 0:00:08.2]} 73... h5+ {[%clk 0:00:10.6]} 74. Kf3 {[%clk 0:00:08.2]}
74... Ra5 {[%clk 0:00:09.4]} 75. Kg3 {[%clk 0:00:06.7]} 75... Kf5 {[%clk
0:00:08.7]} 76. Rd3 {[%clk 0:00:05]} 76... h4+ {[%clk 0:00:08.4]} 77. Kxh4
{[%clk 0:00:05.4]} 77... Kxf4 {[%clk 0:00:08.6]} 78. Rd4+ {[%clk 0:00:05.6]}
78... Ke5 {[%clk 0:00:07.7]} 79. Rg4 {[%clk 0:00:05.5]} 1/2-1/2

[Event "*** Titled Tuesday Blitz"]
[Site "Chess.com"]
[Date "2021.04.06"]
[Round "3"]
[White "Galileo22"]
[Black "NicoChasin"]
[Result "0-1"]
[WhiteElo "2444"]
[BlackElo "2730"]
[TimeControl "180+1"]
[EndTime "10:30:41 PDT"]
[Termination "NicoChasin won by checkmate"]

1. d4 {[%clk 0:03:00.9]} 1... Nf6 {[%clk 0:02:58.7]} 2. Bg5 {[%clk 0:03:01.3]}
2... d5 {[%clk 0:02:56.9]} 3. Nd2 {[%clk 0:03:01.1]} 3... Bf5 {[%clk 0:02:54]}
4. Ngf3 {[%clk 0:02:57.3]} 4... e6 {[%clk 0:02:53.8]} 5. e3 {[%clk 0:02:55.4]}
5... c6 {[%clk 0:02:53.3]} 6. Bd3 {[%clk 0:02:45.9]} 6... Bxd3 {[%clk
0:02:47.3]} 7. cxd3 {[%clk 0:02:45.5]} 7... Nbd7 {[%clk 0:02:47.7]} 8. O-O
{[%clk 0:02:43.6]} 8... h6 {[%clk 0:02:45.7]} 9. Bh4 {[%clk 0:02:42.9]} 9... Be7
{[%clk 0:02:44.1]} 10. Qe2 {[%clk 0:02:32.2]} 10... O-O {[%clk 0:02:29.4]} 11.
Rfc1 {[%clk 0:02:23.3]} 11... Nh5 {[%clk 0:02:20.5]} 12. Bxe7 {[%clk 0:01:57.2]}
12... Qxe7 {[%clk 0:02:20.5]} 13. Ne5 {[%clk 0:01:57.5]} 13... Nhf6 {[%clk
0:02:17.3]} 14. Ndf3 {[%clk 0:01:55.1]} 14... Rfc8 {[%clk 0:02:12.6]} 15. Rc3
{[%clk 0:01:49.7]} 15... Nf8 {[%clk 0:02:08.7]} 16. Rac1 {[%clk 0:01:45.4]}
16... Ne8 {[%clk 0:02:08.4]} 17. Nd2 {[%clk 0:01:42.3]} 17... f6 {[%clk
0:02:07.7]} 18. Nef3 {[%clk 0:01:42.4]} 18... Nd7 {[%clk 0:02:02.4]} 19. Nb3
{[%clk 0:01:37.7]} 19... Rc7 {[%clk 0:01:55.7]} 20. e4 {[%clk 0:01:22.2]} 20...
Qf7 {[%clk 0:01:41.5]} 21. Nfd2 {[%clk 0:01:10]} 21... Nd6 {[%clk 0:00:28.1]}
22. a4 {[%clk 0:00:49.9]} 22... e5 {[%clk 0:00:26]} 23. dxe5 {[%clk 0:00:28.7]}
23... Nxe5 {[%clk 0:00:26.8]} 24. exd5 {[%clk 0:00:21.4]} 24... Qxd5 {[%clk
0:00:25.1]} 25. d4 {[%clk 0:00:21.2]} 25... Ng6 {[%clk 0:00:23.3]} 26. Re3
{[%clk 0:00:14.7]} 26... Nf4 {[%clk 0:00:20.1]} 27. Qf3 {[%clk 0:00:13.2]} 27...
Qxf3 {[%clk 0:00:19.2]} 28. Nxf3 {[%clk 0:00:14.1]} 28... Nf5 {[%clk 0:00:19.4]}
29. Ree1 {[%clk 0:00:13.9]} 29... Nd3 {[%clk 0:00:19.7]} 30. Red1 {[%clk
0:00:13.7]} 30... Nxc1 {[%clk 0:00:19.8]} 31. Rxc1 {[%clk 0:00:14]} 31... Rd8
{[%clk 0:00:20.3]} 32. g3 {[%clk 0:00:13.6]} 32... Rcd7 {[%clk 0:00:20.5]} 33.
Kf1 {[%clk 0:00:13.4]} 33... Kf7 {[%clk 0:00:20.5]} 34. h4 {[%clk 0:00:13]}
34... Nxd4 {[%clk 0:00:21]} 35. Nbxd4 {[%clk 0:00:12.7]} 35... Rxd4 {[%clk
0:00:21.9]} 36. Nxd4 {[%clk 0:00:12.4]} 36... Rxd4 {[%clk 0:00:22.8]} 37. Ra1
{[%clk 0:00:12.8]} 37... Rb4 {[%clk 0:00:22.9]} 38. Ra2 {[%clk 0:00:13.2]} 38...
a5 {[%clk 0:00:23.3]} 39. Ke2 {[%clk 0:00:14.1]} 39... Ke6 {[%clk 0:00:23.8]}
40. Kd2 {[%clk 0:00:13.8]} 40... Kd5 {[%clk 0:00:24.1]} 41. Kc2 {[%clk
0:00:14.2]} 41... Ke4 {[%clk 0:00:24.4]} 42. Ra3 {[%clk 0:00:13.8]} 42... Rc4+
{[%clk 0:00:23.1]} 43. Kd2 {[%clk 0:00:13.3]} 43... Rd4+ {[%clk 0:00:23.4]} 44.
Kc2 {[%clk 0:00:13.3]} 44... f5 {[%clk 0:00:22.9]} 45. Re3+ {[%clk 0:00:12.6]}
45... Kd5 {[%clk 0:00:23.3]} 46. b3 {[%clk 0:00:12.6]} 46... Kd6 {[%clk
0:00:22.9]} 47. Rf3 {[%clk 0:00:12.1]} 47... g6 {[%clk 0:00:22.9]} 48. h5 {[%clk
0:00:12]} 48... gxh5 {[%clk 0:00:22.5]} 49. Rxf5 {[%clk 0:00:11.8]} 49... h4
{[%clk 0:00:21.4]} 50. Rf6+ {[%clk 0:00:11.8]} 50... Kc5 {[%clk 0:00:20.5]} 51.
Rxh6 {[%clk 0:00:12.7]} 51... hxg3 {[%clk 0:00:20.9]} 52. fxg3 {[%clk
0:00:13.2]} 52... Rg4 {[%clk 0:00:21.4]} 53. Rh7 {[%clk 0:00:11.8]} 53... b6
{[%clk 0:00:21.4]} 54. Rh5+ {[%clk 0:00:11.2]} 54... Kd6 {[%clk 0:00:21.4]} 55.
Rh6+ {[%clk 0:00:11.5]} 55... Kd5 {[%clk 0:00:21.7]} 56. Rh5+ {[%clk 0:00:11.3]}
56... Kd6 {[%clk 0:00:14.3]} 57. Rh6+ {[%clk 0:00:11.3]} 57... Kc7 {[%clk
0:00:14.6]} 58. Rh3 {[%clk 0:00:09.5]} 58... Rg6 {[%clk 0:00:11.5]} 59. Kb2
{[%clk 0:00:08.4]} 59... Kd6 {[%clk 0:00:11.9]} 60. Ka3 {[%clk 0:00:08.1]} 60...
Kd5 {[%clk 0:00:11.5]} 61. Kb2 {[%clk 0:00:07.8]} 61... Kd4 {[%clk 0:00:11.2]}
62. Rh4+ {[%clk 0:00:06.5]} 62... Ke3 {[%clk 0:00:10.2]} 63. Rh7 {[%clk
0:00:05.1]} 63... Kf3 {[%clk 0:00:08.1]} 64. Rb7 {[%clk 0:00:02.9]} 64... c5
{[%clk 0:00:08.3]} 65. Rc7 {[%clk 0:00:02.7]} 65... Kxg3 {[%clk 0:00:08.3]} 66.
Kc3 {[%clk 0:00:03.6]} 66... Kf4 {[%clk 0:00:08.8]} 67. Kc4 {[%clk 0:00:03.7]}
67... Ke5 {[%clk 0:00:08.6]} 68. Kb5 {[%clk 0:00:03.4]} 68... Kd4 {[%clk
0:00:09.1]} 69. Rd7+ {[%clk 0:00:01.9]} 69... Kc3 {[%clk 0:00:08.7]} 70. Rb7
{[%clk 0:00:02.4]} 70... Kxb3 {[%clk 0:00:08.9]} 71. Rxb6 {[%clk 0:00:03.3]}
71... Rxb6+ {[%clk 0:00:09.3]} 72. Kxb6 {[%clk 0:00:03.7]} 72... c4 {[%clk
0:00:10.2]} 73. Kc5 {[%clk 0:00:04.6]} 73... c3 {[%clk 0:00:10.9]} 74. Kb5
{[%clk 0:00:05.5]} 74... c2 {[%clk 0:00:11.8]} 75. Kxa5 {[%clk 0:00:06.4]} 75...
c1=Q {[%clk 0:00:12.7]} 76. Kb6 {[%clk 0:00:07.3]} 76... Kxa4 {[%clk 0:00:11.8]}
77. Ka6 {[%clk 0:00:07.2]} 77... Qc6+ {[%clk 0:00:11.7]} 78. Ka7 {[%clk
0:00:08.1]} 78... Kb5 {[%clk 0:00:11.2]} 79. Kb8 {[%clk 0:00:07.7]} 79... Qd7
{[%clk 0:00:11.7]} 80. Ka8 {[%clk 0:00:07.7]} 80... Kb6 {[%clk 0:00:12.6]} 81.
Kb8 {[%clk 0:00:07.7]} 81... Qd8# {[%clk 0:00:13.5]} 0-1

[Event "*** Titled Tuesday Blitz"]
[Site "Chess.com"]
[Date "2021.04.06"]
[Round "3"]
[White "EfrenRamos1"]
[Black "Deepweb2020"]
[Result "1-0"]
[WhiteElo "2278"]
[BlackElo "2522"]
[TimeControl "180+1"]
[EndTime "10:30:56 PDT"]
[Termination "EfrenRamos1 won by checkmate"]

1. d4 {[%clk 0:03:00.9]} 1... c5 {[%clk 0:02:55]} 2. c3 {[%clk 0:02:59]} 2...
Nf6 {[%clk 0:02:47.4]} 3. Nf3 {[%clk 0:02:58.6]} 3... d5 {[%clk 0:02:47.3]} 4.
Bf4 {[%clk 0:02:58.2]} 4... e6 {[%clk 0:02:47]} 5. e3 {[%clk 0:02:58.1]} 5...
Bd6 {[%clk 0:02:47.2]} 6. Bg3 {[%clk 0:02:57.5]} 6... Qc7 {[%clk 0:02:47.4]} 7.
Nbd2 {[%clk 0:02:56.8]} 7... Nbd7 {[%clk 0:02:40.5]} 8. Bd3 {[%clk 0:02:53.8]}
8... O-O {[%clk 0:02:40.6]} 9. Qe2 {[%clk 0:02:49.1]} 9... e5 {[%clk 0:02:40.6]}
10. Nxe5 {[%clk 0:02:43.3]} 10... Nxe5 {[%clk 0:02:41.5]} 11. dxe5 {[%clk
0:02:43.6]} 11... Bxe5 {[%clk 0:02:42.4]} 12. Bxe5 {[%clk 0:02:41.3]} 12... Qxe5
{[%clk 0:02:43.3]} 13. Nf3 {[%clk 0:02:40.8]} 13... Qd6 {[%clk 0:02:38.3]} 14.
h3 {[%clk 0:02:36.9]} 14... a6 {[%clk 0:02:31.4]} 15. Rd1 {[%clk 0:02:34.6]}
15... Be6 {[%clk 0:02:30.5]} 16. c4 {[%clk 0:02:30.3]} 16... Qe7 {[%clk
0:02:26.3]} 17. cxd5 {[%clk 0:02:29.2]} 17... Bxd5 {[%clk 0:02:19.5]} 18. Bc4
{[%clk 0:02:29]} 18... Bc6 {[%clk 0:02:16.1]} 19. O-O {[%clk 0:02:20.2]} 19...
b5 {[%clk 0:02:16.3]} 20. Bd3 {[%clk 0:02:19]} 20... c4 {[%clk 0:02:16.4]} 21.
Bb1 {[%clk 0:02:18.8]} 21... Rad8 {[%clk 0:02:16.7]} 22. Nd4 {[%clk 0:02:18.5]}
22... Bb7 {[%clk 0:02:12.2]} 23. Nf5 {[%clk 0:02:06.9]} 23... Qe5 {[%clk
0:02:07.5]} 24. f4 {[%clk 0:02:03.5]} 24... Qe6 {[%clk 0:02:01.5]} 25. Nd4
{[%clk 0:01:55.6]} 25... Qb6 {[%clk 0:01:58.1]} 26. Kh2 {[%clk 0:01:51.2]} 26...
Rfe8 {[%clk 0:01:51.9]} 27. Qf2 {[%clk 0:01:48.5]} 27... Be4 {[%clk 0:01:49.8]}
28. Bxe4 {[%clk 0:01:42.7]} 28... Nxe4 {[%clk 0:01:50.7]} 29. Qf3 {[%clk
0:01:43.5]} 29... b4 {[%clk 0:01:42.4]} 30. Qe2 {[%clk 0:01:32.7]} 30... c3
{[%clk 0:01:36.6]} 31. Rd3 {[%clk 0:01:30.1]} 31... a5 {[%clk 0:01:26.4]} 32.
Rfd1 {[%clk 0:01:24.8]} 32... cxb2 {[%clk 0:01:20.8]} 33. Qxb2 {[%clk
0:01:24.2]} 33... Qg6 {[%clk 0:01:13.1]} 34. g4 {[%clk 0:01:18.1]} 34... Nc3
{[%clk 0:01:09.4]} 35. R1d2 {[%clk 0:01:11.9]} 35... Qe4 {[%clk 0:01:07.6]} 36.
a3 {[%clk 0:01:06.4]} 36... Nd5 {[%clk 0:00:59.5]} 37. Nf5 {[%clk 0:01:03.7]}
37... f6 {[%clk 0:00:54]} 38. Rxd5 {[%clk 0:00:58.9]} 38... Rxd5 {[%clk
0:00:45.7]} 39. Qb3 {[%clk 0:00:58.7]} 39... Kh8 {[%clk 0:00:33.8]} 40. Qxd5
{[%clk 0:00:55.5]} 40... Qxd5 {[%clk 0:00:26]} 41. Rxd5 {[%clk 0:00:55]} 41...
Rb8 {[%clk 0:00:26.9]} 42. axb4 {[%clk 0:00:54.1]} 42... axb4 {[%clk 0:00:27.8]}
43. Rd2 {[%clk 0:00:53.2]} 43... Kg8 {[%clk 0:00:26.8]} 44. Rb2 {[%clk 0:00:52]}
44... Kf7 {[%clk 0:00:26.5]} 45. Kg3 {[%clk 0:00:50.9]} 45... Ke6 {[%clk
0:00:26.7]} 46. e4 {[%clk 0:00:49.7]} 46... Kd7 {[%clk 0:00:26.6]} 47. Nxg7
{[%clk 0:00:47.4]} 47... Kc6 {[%clk 0:00:27.2]} 48. Nh5 {[%clk 0:00:46.3]} 48...
Kc5 {[%clk 0:00:26.1]} 49. Nxf6 {[%clk 0:00:46.4]} 49... Kc4 {[%clk 0:00:27]}
50. Nxh7 {[%clk 0:00:45.3]} 50... Kc3 {[%clk 0:00:26.2]} 51. Rb1 {[%clk
0:00:38.7]} 51... Kc2 {[%clk 0:00:25.7]} 52. Rf1 {[%clk 0:00:31.3]} 52... b3
{[%clk 0:00:25.2]} 53. g5 {[%clk 0:00:30.1]} 53... b2 {[%clk 0:00:25]} 54. Rf2+
{[%clk 0:00:29.7]} 54... Kd3 {[%clk 0:00:25.4]} 55. Rxb2 {[%clk 0:00:29.7]}
55... Rxb2 {[%clk 0:00:26.2]} 56. e5 {[%clk 0:00:28.5]} 56... Ke4 {[%clk
0:00:26.5]} 57. e6 {[%clk 0:00:27.1]} 57... Rb7 {[%clk 0:00:24.6]} 58. Nf6+
{[%clk 0:00:20.9]} 58... Kf5 {[%clk 0:00:23.8]} 59. e7 {[%clk 0:00:15.1]} 59...
Rxe7 {[%clk 0:00:21.4]} 60. Nd5 {[%clk 0:00:14.6]} 60... Re4 {[%clk 0:00:18.7]}
61. h4 {[%clk 0:00:14.6]} 61... Re1 {[%clk 0:00:16.7]} 62. Kf3 {[%clk
0:00:14.4]} 62... Rf1+ {[%clk 0:00:15.3]} 63. Ke3 {[%clk 0:00:14.5]} 63... Rh1
{[%clk 0:00:13.5]} 64. Ne7+ {[%clk 0:00:13.5]} 64... Ke6 {[%clk 0:00:12.6]} 65.
Ng6 {[%clk 0:00:14]} 65... Kf5 {[%clk 0:00:12]} 66. Ne7+ {[%clk 0:00:14.3]}
66... Ke6 {[%clk 0:00:12.4]} 67. Ng6 {[%clk 0:00:14.6]} 67... Kf7 {[%clk
0:00:11.4]} 68. f5 {[%clk 0:00:13.5]} 68... Re1+ {[%clk 0:00:06.2]} 69. Kf4
{[%clk 0:00:13.3]} 69... Rf1+ {[%clk 0:00:06.6]} 70. Kg4 {[%clk 0:00:13.6]}
70... Rg1+ {[%clk 0:00:06.1]} 71. Kh5 {[%clk 0:00:13.6]} 71... Rf1 {[%clk
0:00:05.9]} 72. f6 {[%clk 0:00:12.4]} 72... Rf5 {[%clk 0:00:05.5]} 73. Nh8+
{[%clk 0:00:11.4]} 73... Kg8 {[%clk 0:00:04.3]} 74. Kg6 {[%clk 0:00:10.8]} 74...
Ra5 {[%clk 0:00:03.6]} 75. Nf7 {[%clk 0:00:10.6]} 75... Rb5 {[%clk 0:00:03.2]}
76. Nh6+ {[%clk 0:00:10.8]} 76... Kh8 {[%clk 0:00:03.1]} 77. h5 {[%clk
0:00:11.7]} 77... Rxg5+ {[%clk 0:00:02.2]} 78. Kxg5 {[%clk 0:00:10.9]} 78... Kh7
{[%clk 0:00:02.8]} 79. f7 {[%clk 0:00:10.5]} 79... Kg7 {[%clk 0:00:03.3]} 80.
Kf5 {[%clk 0:00:10.7]} 80... Kh7 {[%clk 0:00:01.7]} 81. Ke6 {[%clk 0:00:09.6]}
81... Kg7 {[%clk 0:00:01.6]} 82. Ke7 {[%clk 0:00:09.9]} 82... Kh7 {[%clk
0:00:02.3]} 83. Nf5 {[%clk 0:00:09.9]} 83... Kh8 {[%clk 0:00:02.2]} 84. f8=Q+
{[%clk 0:00:10.8]} 84... Kh7 {[%clk 0:00:02.5]} 85. Qg7# {[%clk 0:00:11.7]} 1-0